bitfinex/quotes_BTCUSD_20250803
["timestamp","ask_amount","ask_price","bid_price","bid_amount"]
[1754231794181,0.22772,113960.0,113940.0,0.62837249]
[1754231794395,0.2359405,113960.0,113940.0,0.62837249]
[1754231794842,0.22772,113960.0,113940.0,0.62837249]
[1754231795059,0.22772,113960.0,113930.0,0.23695012]
[1754231795277,0.23594091,113960.0,113940.0,0.60530249]
[1754231796146,0.23494091,113960.0,113940.0,0.60530249]
[1754231796358,0.23594091,113960.0,113940.0,0.60530249]
[1754231796781,0.22772,113960.0,113940.0,0.60530249]
[1754231796987,0.22672,113960.0,113930.0,0.32558296]
[1754231797197,0.23494154,113960.0,113940.0,0.69041249]
[1754231797620,0.23494195,113960.0,113940.0,0.68541249]
[1754231798490,0.23594195,113960.0,113940.0,0.68541249]
[1754231801326,0.23594195,113960.0,113940.0,0.67741249]
[1754231802157,0.23594195,113960.0,113940.0,0.63341249]
[1754231802782,0.23594195,113960.0,113940.0,0.70874332]
[1754231804291,0.23594195,113960.0,113940.0,0.71179332]
[1754231804531,0.23594195,113960.0,113950.0,0.002]
[1754231804738,0.23594195,113960.0,113940.0,0.02811]
[1754231804955,0.23594195,113960.0,113950.0,0.68063332]
[1754231805170,0.23594395,113960.0,113950.0,0.68063332]
[1754231805379,0.23494395,113960.0,113950.0,0.68063332]
[1754231805823,0.23594395,113960.0,113950.0,0.68063332]
[1754231806332,0.23494395,113960.0,113950.0,0.68063332]
[1754231806539,0.23594395,113960.0,113950.0,0.68063332]
[1754231808144,0.23594395,113960.0,113940.0,0.02811]
[1754231808552,0.23594395,113960.0,113940.0,0.70874332]
[1754231809041,0.23494395,113960.0,113940.0,0.70874332]
[1754231809243,0.14989395,113960.0,113940.0,0.66474332]
[1754231809449,0.0806,113950.0,113940.0,0.66474332]
[1754231809612,0.0806,113950.0,113940.0,0.66674332]
[1754231810036,0.0806,113950.0,113940.0,0.002]
[1754231810241,0.0806,113950.0,113940.0,0.68263332]
[1754231810436,0.13628,113960.0,113940.0,0.76980332]
[1754231810649,0.1445043,113960.0,113940.0,0.77285332]
[1754231811002,0.1445043,113960.0,113940.0,0.77385332]
[1754231811593,0.1445043,113960.0,113940.0,0.77485332]
[1754231811825,0.1445043,113960.0,113940.0,0.76680332]
[1754231812238,0.1445043,113960.0,113940.0,0.76480332]
[1754231812462,0.0917743,113960.0,113940.0,0.76480332]
[1754231812677,0.0937743,113960.0,113950.0,0.68063332]
[1754231812885,0.0957743,113960.0,113950.0,0.81691332]
[1754231813514,0.0947743,113960.0,113950.0,0.81691332]
[1754231813771,0.001,113960.0,113950.0,0.90608332]
[1754231813991,0.002,113960.0,113950.0,0.90908332]
[1754231814426,0.001,113960.0,113950.0,0.90908332]
[1754231814656,0.001,113960.0,113950.0,0.22845]
[1754231814875,0.001,113960.0,113950.0,0.90608332]
[1754231815509,0.001,113960.0,113950.0,0.89808332]
[1754231815929,0.001,113960.0,113950.0,0.21745]
[1754231816155,0.0816,113960.0,113950.0,0.89808332]
[1754231816363,0.0816,113960.0,113950.0,0.86608332]
[1754231816571,0.0816,113960.0,113950.0,0.18545]
[1754231816781,0.0816,113960.0,113950.0,0.86608332]
[1754231818849,0.78826414,113970.0,113950.0,0.86108332]
[1754231819060,0.79648287,113970.0,113950.0,0.86308332]
[1754231819497,0.11584955,113970.0,113950.0,0.86308332]
[1754231819706,0.11584955,113970.0,113950.0,0.86208332]
[1754231820122,0.11684955,113970.0,113950.0,0.86208332]
[1754231820573,0.02295835,113970.0,113960.0,0.76780332]
[1754231820788,0.01573962,113970.0,113960.0,0.76980332]
[1754231821000,0.01573962,113970.0,113960.0,0.77280332]
[1754231821721,0.01473962,113970.0,113960.0,0.77280332]
[1754231821938,0.001,113970.0,113960.0,0.08917]
[1754231822213,0.002,113970.0,113960.0,0.77199707]
[1754231822440,0.001,113970.0,113960.0,0.76980332]
[1754231822650,0.001,113970.0,113960.0,0.76180332]
[1754231822869,0.18906733,113980.0,113960.0,0.68594923]
[1754231823090,0.18921041,113980.0,113970.0,0.13624]
[1754231823307,0.19121041,113980.0,113970.0,0.13524]
[1754231823537,0.19121041,113980.0,113970.0,0.10924]
[1754231823979,0.14187841,113980.0,113970.0,0.11124]
[1754231824614,0.22347841,113980.0,113970.0,0.19841]
[1754231824831,0.22842841,113980.0,113970.0,0.19841]
[1754231825110,0.22842841,113980.0,113970.0,0.11124]
[1754231825293,0.22842841,113980.0,113970.0,0.10924]
[1754231826625,0.22842841,113980.0,113970.0,0.10424]
[1754231829527,0.22842841,113980.0,113970.0,0.09624]
[1754231830358,0.22842841,113980.0,113970.0,0.13616]
[1754231832553,0.72809031,113980.0,113950.0,0.08863284]
[1754231832794,0.69208923,113970.0,113960.0,0.13616]
[1754231832993,0.08947,113970.0,113960.0,0.13616]
[1754231833672,0.08947,113970.0,113960.0,0.13116]
[1754231834110,0.08947,113970.0,113960.0,0.13216]
[1754231834544,0.08947,113970.0,113960.0,0.13716]
[1754231834759,0.08947,113970.0,113960.0,0.13816]
[1754231836734,0.08947,113970.0,113960.0,0.13016]
[1754231840612,0.78288207,113970.0,113960.0,0.001]
[1754231840824,0.78288207,113970.0,113940.0,0.13212]
[1754231841042,0.82820923,113960.0,113940.0,0.13212]
[1754231841479,0.08947,113950.0,113940.0,0.13428]
[1754231843307,0.08947,113950.0,113940.0,0.13528]
[1754231843509,0.08947,113950.0,113940.0,0.13728]
[1754231843712,0.08947,113950.0,113940.0,0.13428]
[1754231844201,0.09047,113950.0,113940.0,0.14028]
[1754231844704,0.09047,113950.0,113940.0,0.13228]
[1754231847895,0.09047,113950.0,113940.0,0.12728]
[1754231852199,0.09047,113950.0,113940.0,0.11928]
[1754231853092,0.69524923,113950.0,113940.0,0.006]
[1754231854186,0.69424923,113950.0,113940.0,0.003]
[1754231854406,0.69424923,113950.0,113930.0,0.26905]
[1754231854621,0.69424923,113950.0,113940.0,0.002]
[1754231854855,0.74301923,113950.0,113940.0,0.004]
[1754231855067,0.74301923,113950.0,113930.0,0.26805]
[1754231855526,0.08731,113940.0,113930.0,0.26805]
[1754231855743,0.08947,113940.0,113930.0,0.26805]
[1754231856409,0.08947,113940.0,113930.0,0.27105]
[1754231856645,0.08947,113940.0,113930.0,0.27205]
[1754231856855,0.08947,113940.0,113930.0,0.27252713]
[1754231857064,0.08947,113940.0,113930.0,0.26852713]
[1754231857283,0.09047,113940.0,113930.0,0.27452713]
[1754231859441,0.09047,113940.0,113930.0,0.26652713]
[1754231860349,0.1042117,113940.0,113930.0,0.26652713]
[1754231861205,0.1032117,113940.0,113930.0,0.26052713]
[1754231862090,0.1032117,113940.0,113930.0,0.25552713]
[1754231862526,0.0137417,113940.0,113930.0,0.94739636]
[1754231862754,0.13604,113950.0,113930.0,0.95039636]
[1754231863022,0.13604,113950.0,113930.0,0.86533636]
[1754231863023,0.14978161,113950.0,113930.0,0.86533636]
[1754231863232,0.14978161,113950.0,113940.0,0.08506]
[1754231863453,0.24051161,113950.0,113930.0,0.34258713]
[1754231864314,0.24151161,113950.0,113930.0,0.34058713]
[1754231864526,0.58151161,113950.0,113940.0,0.00203]
[1754231864745,0.58251161,113950.0,113940.0,0.00203]
[1754231864960,0.58251161,113950.0,113940.0,0.08709]
[1754231865172,0.49178161,113950.0,113940.0,0.08709]
[1754231865830,0.35574161,113950.0,113940.0,0.08709]
[1754231866055,0.47604,113950.0,113940.0,0.69486923]
[1754231866488,0.47804,113950.0,113940.0,0.68641923]
[1754231866760,0.47804,113950.0,113940.0,0.08164]
[1754231867863,0.47804,113950.0,113940.0,0.68641923]
[1754231869184,0.47804,113950.0,113940.0,0.68141923]
[1754231869617,0.47804,113950.0,113940.0,0.07664]
[1754231871233,0.47804,113950.0,113940.0,0.68141923]
[1754231871234,0.13804,113950.0,113940.0,0.68141923]
[1754231871509,0.002,113950.0,113940.0,0.81842923]
[1754231871771,0.002,113950.0,113940.0,0.21365]
[1754231871992,0.002,113950.0,113940.0,0.81842923]
[1754231873485,0.002,113950.0,113940.0,0.81042923]
[1754231876969,0.002,113950.0,113940.0,1.16876207]
[1754231877386,0.002,113950.0,113940.0,1.16376207]
[1754231877595,0.002,113950.0,113940.0,1.16279207]
[1754231878263,0.09065,113950.0,113940.0,1.16279207]
[1754231878472,0.09273,113950.0,113940.0,0.4067]
[1754231878688,0.09273,113950.0,113940.0,0.2707]
[1754231878903,0.69750923,113950.0,113940.0,0.001]
[1754231879115,1.17350923,113950.0,113940.0,0.001]
[1754231879560,0.56873,113950.0,113940.0,0.001]
[1754231880661,0.56873,113950.0,113930.0,0.24852713]
[1754231881092,0.08865,113940.0,113930.0,0.24852713]
[1754231881524,0.09073,113940.0,113930.0,0.24852713]
[1754231882714,0.09073,113940.0,113930.0,0.24952713]
[1754231882917,0.09073,113940.0,113930.0,0.25052713]
[1754231883355,0.00208,113940.0,113930.0,0.24952713]
[1754231883766,0.00308,113940.0,113930.0,0.33861713]
[1754231883978,0.001,113940.0,113930.0,0.94662636]
[1754231884440,0.001,113940.0,113930.0,0.94162636]
[1754231884874,0.01474134,113940.0,113930.0,0.94162636]
[1754231887647,0.01474134,113940.0,113930.0,0.93362636]
[1754231889676,0.13596,113960.0,113930.0,0.93362636]
[1754231889888,0.34820299,113960.0,113940.0,0.82579923]
[1754231890104,0.34820299,113960.0,113940.0,0.74396923]
[1754231890320,0.34820299,113960.0,113950.0,0.08506]
[1754231890525,0.35028299,113960.0,113950.0,0.08506]
[1754231890964,0.01228299,113960.0,113950.0,0.08506]
[1754231891176,0.01228299,113960.0,113950.0,0.69510923]
[1754231891573,0.00820299,113960.0,113950.0,0.08533]
[1754231891753,0.01020299,113960.0,113950.0,0.08533]
[1754231891958,0.002,113960.0,113950.0,0.08533]
[1754231892192,0.00401,113960.0,113950.0,0.08533]
[1754231892603,0.01321622,113960.0,113950.0,0.08533]
[1754231893029,0.01221622,113960.0,113950.0,0.08533]
[1754231893698,0.00401,113960.0,113950.0,0.08533]
[1754231894840,0.002,113960.0,113950.0,0.68210923]
[1754231899017,0.002,113960.0,113950.0,0.67710923]
[1754231900827,0.00401,113960.0,113950.0,0.07233]
[1754231901764,0.00401,113960.0,113950.0,0.06915]
[1754231901980,0.08794,113960.0,113950.0,0.13592]
[1754231903092,0.08794,113960.0,113940.0,0.35948]
[1754231903303,0.08794,113960.0,113940.0,0.4954]
[1754231904179,0.08497,113960.0,113940.0,1.01357923]
[1754231904402,0.08497,113960.0,113950.0,0.0866]
[1754231904613,0.08297,113960.0,113950.0,0.0866]
[1754231905094,0.08497,113960.0,113950.0,0.0866]
[1754231905536,0.08597,113960.0,113950.0,0.0866]
[1754231905756,0.08397,113960.0,113950.0,0.0866]
[1754231905970,0.08597,113960.0,113950.0,0.0816]
[1754231906219,0.08497,113960.0,113950.0,0.0816]
[1754231906427,0.08597,113960.0,113950.0,0.0816]
[1754231907989,0.08597,113960.0,113940.0,0.74387923]
[1754231908202,0.08597,113960.0,113940.0,0.2257]
[1754231908417,0.08894,113960.0,113940.0,0.2257]
[1754231908868,0.08694,113960.0,113940.0,0.2257]
[1754231909091,0.08594,113960.0,113940.0,0.2257]
[1754231909305,0.08794,113960.0,113940.0,0.2257]
[1754231910182,0.08794,113960.0,113940.0,0.2177]
[1754231911672,0.08894,113960.0,113950.0,0.0866]
[1754231911896,0.00798,113960.0,113950.0,0.0866]
[1754231912571,0.00598,113960.0,113950.0,0.0866]
[1754231912893,0.00798,113960.0,113950.0,0.0866]
[1754231913104,0.00798,113960.0,113950.0,0.0816]
[1754231913321,0.00698,113960.0,113950.0,0.0816]
[1754231913532,0.00798,113960.0,113950.0,0.0816]
[1754231914661,0.00798,113960.0,113950.0,0.08369]
[1754231917066,0.00501,113960.0,113950.0,0.08369]
[1754231917281,0.00501,113960.0,113950.0,0.07569]
[1754231919279,0.003,113960.0,113950.0,0.68364923]
[1754231920166,0.003,113960.0,113950.0,0.67864923]
[1754231923431,0.002,113960.0,113950.0,0.76728207]
[1754231924281,0.0004,113980.0,113950.0,0.76728207]
[1754231924491,0.00861664,113980.0,113970.0,0.60477923]
[1754231924667,0.00861664,113980.0,113970.0,0.60585923]
[1754231924668,0.0004,113980.0,113970.0,0.60585923]
[1754231924872,0.0004,113980.0,113970.0,0.60899923]
[1754231925712,0.00052558,113980.0,113970.0,0.60899923]
[1754231925919,0.00252558,113980.0,113970.0,0.60899923]
[1754231926339,0.00252558,113980.0,113970.0,0.69524923]
[1754231926778,0.00352569,113980.0,113970.0,0.69524923]
[1754231926983,0.00252558,113980.0,113970.0,0.69524923]
[1754231927219,0.00352558,113980.0,113970.0,0.69024923]
[1754231931365,0.00352558,113980.0,113970.0,0.68224923]
[1754231934351,0.00352558,113980.0,113970.0,0.67724923]
[1754231935711,0.00152558,113980.0,113970.0,0.67724923]
[1754231936136,0.00052558,113980.0,113970.0,0.67724923]
[1754231936353,0.00152558,113980.0,113970.0,0.67924923]
[1754231938650,0.00152558,113980.0,113970.0,0.67124923]
[1754231942143,0.00152558,113980.0,113970.0,0.66624923]
[1754231944281,0.00152558,113980.0,113970.0,0.80196923]
[1754231945549,0.00152558,113980.0,113970.0,0.58752284]
[1754231945773,0.00152558,113980.0,113970.0,1.19230207]
[1754231946007,0.00152558,113980.0,113970.0,1.21868107]
[1754231949540,0.00152558,113980.0,113970.0,1.21368107]
[1754231949748,0.00152558,113980.0,113970.0,1.21504107]
[1754231950772,0.00152558,113980.0,113970.0,1.21482107]
[1754231952265,0.00152558,113980.0,113970.0,1.07910107]
[1754231952447,0.00152558,113980.0,113970.0,1.21478107]
[1754231952617,0.00152558,113980.0,113970.0,1.20678107]
[1754231956647,0.00152558,113980.0,113970.0,1.20178107]
[1754231959856,0.00152558,113980.0,113970.0,1.19378107]
[1754231963809,0.00152558,113980.0,113970.0,1.18878107]
[1754231965174,0.00152558,113980.0,113970.0,1.20623009]
[1754231966897,0.00152558,113980.0,113970.0,1.19823009]
[1754231969412,0.00465558,113980.0,113970.0,1.19823009]
[1754231970900,0.00465558,113980.0,113970.0,1.19311009]
[1754231971113,0.00673558,113980.0,113970.0,1.19311009]
[1754231973786,0.00465558,113980.0,113970.0,1.19311009]
[1754231974078,0.00465558,113980.0,113970.0,1.18511009]
[1754231976774,0.34,114010.0,113980.0,0.60477923]
[1754231977012,0.00212766,113990.0,113980.0,1.04641207]
[1754231977221,0.00212766,113990.0,113980.0,1.18197207]
[1754231977487,0.00212766,113990.0,113980.0,1.20835007]
[1754231977966,0.00212766,113990.0,113980.0,1.20335007]
[1754231978654,0.00525766,113990.0,113980.0,1.20335007]
[1754231979655,0.00525766,113990.0,113980.0,1.16179038]
[1754231979865,0.00725766,113990.0,113980.0,1.16179038]
[1754231981036,0.00725766,113990.0,113980.0,1.15379038]
[1754231982064,0.03214853,114010.0,113980.0,1.15379038]
[1754231982284,0.00215,113990.0,113980.0,1.02336038]
[1754231982489,0.00215,113990.0,113980.0,1.15888038]
[1754231982695,0.00215,113990.0,113980.0,1.15988038]
[1754231982908,0.00215,113990.0,113980.0,1.21444007]
[1754231984750,0.00215,113990.0,113980.0,1.28977897]
[1754231984959,0.00215,113990.0,113980.0,1.28477897]
[1754231988043,0.00215,113990.0,113980.0,1.27677897]
[1754231988275,0.02559,113990.0,113980.0,0.39322]
[1754231988871,0.02559,113990.0,113980.0,1.07333813]
[1754231989373,0.00525,113990.0,113980.0,1.07333813]
[1754231989579,0.00215,113990.0,113980.0,1.15457813]
[1754231990726,0.00215,113990.0,113980.0,0.47446]
[1754231990929,0.00525,113990.0,113980.0,0.47446]
[1754231992029,0.00525,113990.0,113980.0,0.46946]
[1754231992270,0.18596853,114010.0,113980.0,1.07923857]
[1754231992472,0.30234322,114010.0,113990.0,0.13548]
[1754231992679,0.00525,114000.0,113990.0,0.21672]
[1754231992857,0.01346395,114000.0,113990.0,0.21672]
[1754231993279,0.01346391,114000.0,113990.0,0.21672]
[1754231993715,0.01036391,114000.0,113990.0,0.21672]
[1754231993924,0.01036391,114000.0,113990.0,0.82649857]
[1754231994342,0.01036391,114000.0,113990.0,0.82136857]
[1754231994546,0.01036391,114000.0,113990.0,0.21672]
[1754231995167,0.01036391,114000.0,113990.0,0.20872]
[1754231995518,0.01236391,114000.0,113990.0,0.20872]
[1754231996006,0.01336391,114000.0,113990.0,0.20872]
[1754231996213,0.01336269,114000.0,113990.0,0.20872]
[1754231998644,0.01336269,114000.0,113990.0,0.21082]
[1754231999064,0.01336269,114000.0,113990.0,0.20582]
[1754232001801,0.01336269,114000.0,113990.0,0.20885]
[1754232002234,0.01336269,114000.0,113990.0,0.20085]
[1754232004026,0.01336269,114000.0,113990.0,0.22692919]
[1754232006184,0.01336269,114000.0,113990.0,0.22192919]
[1754232006901,0.01336299,114000.0,113990.0,0.22192919]
[1754232007960,0.01121299,114000.0,113990.0,0.82657776]
[1754232008870,0.1354,114020.0,113990.0,0.82657776]
[1754232009077,0.24045905,114020.0,113990.0,0.74230776]
[1754232009290,0.24045905,114020.0,114000.0,0.07627]
[1754232009772,0.24045909,114020.0,114000.0,0.07627]
[1754232010387,0.24045909,114020.0,114000.0,0.07527]
[1754232010823,0.92046129,114020.0,114000.0,0.7552722]
[1754232011244,0.92246129,114020.0,114000.0,0.7562722]
[1754232011460,0.6800022,114010.0,114000.0,0.07627]
[1754232011698,0.6800022,114010.0,114000.0,0.07837]
[1754232011875,0.6811422,114010.0,114000.0,0.07837]
[1754232012452,0.00114,114010.0,114000.0,0.07837]
[1754232012681,0.6811422,114010.0,114000.0,0.07627]
[1754232013104,0.6811422,114010.0,114000.0,0.07527]
[1754232013299,0.6811422,114010.0,114000.0,0.07027]
[1754232016400,0.6811422,114010.0,114000.0,0.06227]
[1754232020427,0.6811422,114010.0,114000.0,0.05727]
[1754232020830,0.68935592,114010.0,114000.0,0.05727]
[1754232024609,0.82467592,114010.0,114000.0,0.04927]
[1754232025225,0.68935592,114010.0,114000.0,0.04927]
[1754232025425,0.82467592,114010.0,114000.0,0.04927]
[1754232027411,0.82467592,114010.0,114000.0,0.04427]
[1754232028297,1.0034398,114010.0,113980.0,0.164608]
[1754232028519,0.6800022,114000.0,113980.0,0.164608]
[1754232028795,0.6800022,114000.0,113980.0,0.8446102]
[1754232028796,0.74980592,114000.0,113980.0,0.8446102]
[1754232029012,0.68821592,114000.0,113980.0,0.7093302]
[1754232029233,0.00821372,114000.0,113990.0,0.00295]
[1754232029458,0.00935372,114000.0,113990.0,0.00295]
[1754232029671,0.00935372,114000.0,113990.0,0.08497]
[1754232031691,0.00935372,114000.0,113990.0,0.08597]
[1754232031913,0.00935372,114000.0,113990.0,0.08697]
[1754232032352,0.00935372,114000.0,113990.0,0.07897]
[1754232032797,0.00935355,114000.0,113990.0,0.07897]
[1754232034521,0.00935355,114000.0,113990.0,0.07397]
[1754232034876,0.00935303,114000.0,113990.0,0.07397]
[1754232035085,0.00935303,114000.0,113990.0,0.07692]
[1754232039398,0.00935303,114000.0,113990.0,0.06892]
[1754232041693,0.00935303,114000.0,113990.0,0.06392]
[1754232042699,0.14455303,114000.0,113990.0,0.06392]
[1754232044524,0.14455246,114000.0,113990.0,0.06392]
[1754232046310,0.14455246,114000.0,113990.0,0.05592]
[1754232048633,0.14455246,114000.0,113990.0,0.05092]
[1754232052908,0.14455246,114000.0,113990.0,0.04797]
[1754232053109,7.0064879,114000.0,113990.0,0.002]
[1754232053310,7.12205566,114000.0,113990.0,0.002]
[1754232053636,7.16486556,114000.0,113990.0,0.002]
[1754232054188,7.16486556,114000.0,113990.0,0.001]
[1754232054621,7.13893064,114000.0,113990.0,0.001]
[1754232055483,0.34,113990.0,113970.0,0.07743]
[1754232055701,0.13512,113980.0,113970.0,0.07747766]
[1754232055837,0.13512,113980.0,113970.0,0.07743766]
[1754232057331,0.13512,113980.0,113970.0,0.07843766]
[1754232057565,0.13512,113980.0,113970.0,0.08043766]
[1754232057788,0.13512,113980.0,113970.0,0.07943766]
[1754232058286,0.13612,113980.0,113970.0,0.08143766]
[1754232058993,0.13825,113980.0,113970.0,0.08143766]
[1754232059239,1.33118976,113980.0,113970.0,0.00404766]
[1754232059445,6.41701312,113980.0,113970.0,0.00404766]
[1754232060518,6.43340466,113980.0,113970.0,0.00404766]
[1754232060965,6.41701312,113980.0,113970.0,0.00404766]
[1754232061367,6.38918208,113980.0,113970.0,0.00404766]
[1754232062631,0.34,113970.0,113960.0,0.08047766]
[1754232062856,0.34,113970.0,113960.0,0.08556324]
[1754232063701,0.34,113970.0,113960.0,0.08356324]
[1754232064220,0.341,113970.0,113960.0,0.08656324]
[1754232064642,0.35686828,113970.0,113960.0,0.08656324]
[1754232065026,0.35686828,113970.0,113960.0,0.08356324]
[1754232065423,0.43791828,113970.0,113960.0,0.08456324]
[1754232065642,0.43691828,113970.0,113960.0,0.08156324]
[1754232065913,0.43791828,113970.0,113960.0,0.08356324]
[1754232067110,0.35686828,113970.0,113960.0,0.08356324]
[1754232069705,0.35686828,113970.0,113960.0,0.07556324]
[1754232070925,0.34313,113970.0,113960.0,0.07056324]
[1754232072659,0.42714,113970.0,113960.0,0.07056324]
[1754232076516,0.42714,113970.0,113960.0,0.00312558]
[1754232076752,0.43024,113970.0,113950.0,0.08028558]
[1754232076931,0.13504,113960.0,113950.0,0.08028558]
[1754232077110,0.13504,113960.0,113950.0,0.08242558]
[1754232077937,0.13504,113960.0,113950.0,0.07742558]
[1754232078315,0.2191754,113970.0,113950.0,0.07742558]
[1754232078717,0.2329142,113970.0,113950.0,0.07742558]
[1754232079115,0.24209838,113970.0,113950.0,0.07842558]
[1754232079308,0.22835958,113970.0,113950.0,0.07842558]
[1754232079708,0.22835958,113970.0,113950.0,0.6833817]
[1754232080324,0.22835958,113970.0,113950.0,0.61117612]
[1754232080547,0.22835958,113970.0,113960.0,0.08208]
[1754232080761,0.23034958,113970.0,113960.0,0.08208]
[1754232082221,0.23034958,113970.0,113950.0,0.08716]
[1754232082405,0.23034958,113970.0,113950.0,0.08616]
[1754232082749,0.24408837,113970.0,113950.0,0.08616]
[1754232082952,0.28020187,113970.0,113950.0,0.08616]
[1754232083264,0.27920187,113970.0,113950.0,0.08516]
[1754232083672,0.28020187,113970.0,113960.0,0.001]
[1754232084161,0.27920187,113970.0,113950.0,0.08516]
[1754232084555,0.28020187,113970.0,113950.0,0.07816]
[1754232084767,0.28330187,113970.0,113950.0,0.75873251]
[1754232085007,0.28330187,113970.0,113950.0,0.67657251]
[1754232085462,0.28330187,113970.0,113960.0,0.00214]
[1754232086362,0.28230187,113970.0,113960.0,0.00214]
[1754232086596,0.05816187,113970.0,113960.0,0.68271251]
[1754232086887,0.04444159,113970.0,113960.0,0.76787251]
[1754232087100,0.0372389,113970.0,113960.0,0.76887251]
[1754232087320,0.04544287,113970.0,113960.0,0.90387251]
[1754232088185,0.0372389,113970.0,113960.0,0.90387251]
[1754232088380,0.04544419,113970.0,113960.0,0.90387251]
[1754232088864,0.0372389,113970.0,113960.0,0.90387251]
[1754232090764,0.0372389,113970.0,113960.0,0.82804354]
[1754232090991,0.0372389,113970.0,113960.0,0.2233]
[1754232092233,0.0372389,113970.0,113960.0,0.21736]
[1754232092626,0.0372389,113970.0,113960.0,0.20936]
[1754232093490,0.0372389,113970.0,113960.0,0.81410354]
[1754232093698,0.0372389,113970.0,113960.0,0.81718354]
[1754232094856,0.0011254,113970.0,113960.0,0.81718354]
[1754232095106,0.0011254,113970.0,113960.0,1.17551638]
[1754232095489,0.0011254,113970.0,113960.0,1.06689938]
[1754232095686,0.0011254,113970.0,113960.0,1.20185938]
[1754232099249,0.0011254,113970.0,113960.0,1.19685938]
[1754232099688,0.0011254,113970.0,113960.0,1.18885938]
[1754232106263,0.0011254,113970.0,113960.0,1.18385938]
[1754232106903,0.0011254,113970.0,113960.0,1.17585938]
[1754232107529,0.0011254,113970.0,113960.0,1.78060292]
[1754232112310,0.0011254,113970.0,113960.0,1.78360292]
[1754232112514,0.0011254,113970.0,113960.0,1.78260292]
[1754232112731,0.0001254,113970.0,113960.0,1.78260292]
[1754232112950,0.0011254,113970.0,113960.0,1.78460292]
[1754232113365,0.0011254,113970.0,113960.0,1.77960292]
[1754232113991,0.0011254,113970.0,113960.0,1.77160292]
[1754232114198,0.0011254,113970.0,113960.0,1.78905194]
[1754232118230,0.0011254,113970.0,113960.0,2.12905194]
[1754232118884,0.0011254,113970.0,113960.0,2.27905194]
[1754232119143,0.0011254,113970.0,113960.0,2.50455211]
[1754232120382,0.0001254,113970.0,113960.0,2.50255211]
[1754232120779,0.0011254,113970.0,113960.0,2.50655211]
[1754232120909,0.07945,114010.0,113970.0,0.40744902]
[1754232121312,0.00014303,114010.0,114000.0,1.20360708]
[1754232121516,0.00014303,114010.0,114000.0,1.69673992]
[1754232121780,0.00014303,114010.0,114000.0,1.77431992]
[1754232122201,0.00014303,114010.0,114000.0,1.80069192]
[1754232122515,0.00014303,114010.0,114000.0,0.60420484]
[1754232122717,0.07959303,114010.0,114000.0,1.81369192]
[1754232122964,0.08470303,114010.0,114000.0,0.51946484]
[1754232123177,0.08770303,114010.0,114000.0,1.12420838]
[1754232124016,0.002,114010.0,114000.0,1.12420838]
[1754232124242,0.00404,114010.0,114000.0,1.12420838]
[1754232126124,0.08349,114010.0,114000.0,1.12420838]
[1754232126331,0.08349,114010.0,114000.0,1.20678838]
[1754232128139,0.08349,114010.0,114000.0,1.19878838]
[1754232128608,0.08349,114010.0,114000.0,0.59404484]
[1754232128820,0.08349,114010.0,114000.0,1.00251883]
[1754232129026,0.08656,114010.0,114000.0,1.13727883]
[1754232130137,0.08349,114010.0,114000.0,1.13727883]
[1754232130373,0.08349,114010.0,114000.0,1.21985883]
[1754232131174,0.00404,114010.0,114000.0,1.22198883]
[1754232132328,0.00404,114010.0,114000.0,1.22519883]
[1754232133574,0.00404,114010.0,114000.0,1.22194883]
[1754232133789,0.08268,114010.0,114000.0,1.22194883]
[1754232133947,0.08585,114010.0,114000.0,1.13723883]
[1754232134810,0.00404,114010.0,114000.0,1.13936883]
[1754232135026,0.002,114010.0,114000.0,1.82342237]
[1754232135240,0.002,114010.0,114000.0,1.21867883]
[1754232135436,0.002,114010.0,114000.0,1.81542237]
[1754232135903,0.002,114010.0,114000.0,1.81042237]
[1754232137900,0.002,114010.0,114000.0,1.20567883]
[1754232139286,0.01018523,114010.0,114000.0,1.20567883]
[1754232139497,0.002,114010.0,114000.0,1.20567883]
[1754232140277,0.01018745,114010.0,114000.0,1.20567883]
[1754232142264,0.002,114010.0,114000.0,1.20567883]
[1754232143056,0.002,114010.0,114000.0,1.20067883]
[1754232143273,0.002,114010.0,114000.0,1.19267883]
[1754232150174,0.002,114010.0,114000.0,1.17967883]
[1754232157188,0.002,114010.0,114000.0,1.17467883]
[1754232157397,0.002,114010.0,114000.0,1.16667883]
[1754232161565,0.01413114,114050.0,114000.0,1.77142237]
[1754232161803,8.364e-05,114040.0,114030.0,0.60474354]
[1754232162019,0.02569049,114040.0,114030.0,0.13464]
[1754232162171,0.00925917,114040.0,114030.0,0.13464]
[1754232163234,0.04546736,114040.0,114030.0,0.82089354]
[1754232163366,0.04546736,114040.0,114030.0,0.82385354]
[1754232163572,0.00925917,114040.0,114030.0,0.82385354]
[1754232164173,0.00104364,114040.0,114030.0,0.81885354]
[1754232164645,0.00204364,114040.0,114030.0,0.81885354]
[1754232165975,0.03742156,114040.0,114030.0,0.81885354]
[1754232166187,0.00204364,114040.0,114030.0,0.81885354]
[1754232166818,0.00204364,114040.0,114030.0,0.81085354]
[1754232167243,0.00304364,114040.0,114030.0,0.81085354]
[1754232167451,0.00304364,114040.0,114030.0,0.81300354]
[1754232167829,0.00208364,114040.0,114030.0,0.81300354]
[1754232168874,0.00208364,114040.0,114030.0,0.83937254]
[1754232170741,0.00208364,114040.0,114030.0,0.92800538]
[1754232171406,0.00208364,114040.0,114030.0,0.32326184]
[1754232171606,0.00208364,114040.0,114030.0,0.92800538]
[1754232171779,8.364e-05,114040.0,114030.0,0.92800538]
[1754232172287,0.00108364,114040.0,114030.0,0.92800538]
[1754232172707,8.364e-05,114040.0,114030.0,0.32326184]
[1754232172874,8.364e-05,114040.0,114030.0,0.92800538]
[1754232173666,8.364e-05,114040.0,114030.0,0.92300538]
[1754232173870,8.364e-05,114040.0,114030.0,0.91500538]
[1754232174349,8.364e-05,114040.0,114030.0,1.18470538]
[1754232175517,8.364e-05,114040.0,114030.0,1.2021544]
[1754232175907,8.364e-05,114040.0,114030.0,1.2031544]
[1754232176168,8.364e-05,114040.0,114030.0,1.2051544]
[1754232176812,8.364e-05,114040.0,114030.0,0.60041086]
[1754232177021,8.364e-05,114040.0,114030.0,1.2051544]
[1754232180957,8.364e-05,114040.0,114030.0,1.1971544]
[1754232181158,0.03001504,114070.0,114030.0,1.1971544]
[1754232181356,0.03001504,114070.0,114040.0,0.82789638]
[1754232181613,0.03061504,114070.0,114050.0,0.13452]
[1754232181836,0.03061504,114070.0,114060.0,0.13452]
[1754232182055,0.03157504,114070.0,114060.0,0.13452]